[Event "Schack-SM 2023: Veteran-SM 65+"]
[Site "Helsingborg Arena, Mellersta Stenbocksgatan 14, Helsingborg, Sweden"]
[Date "2023.07.07"]
[Round "7.3"]
[White "Alquist, Erik"]
[Black "Blomstrom, Lars"]
[Result "1-0"]
[TimeControl "90 minutes for 40 moves + 30 minutes for the rest of games + 30 seconds per move from move one."]
[WhiteElo "1936"]
[BlackElo "2021"]

1. e4 {[%clk 01:30:43]} {[%emt 00:00:16]} e5 {[%clk 01:30:55]} {[%emt
00:00:06]} 2. Nf3 {[%clk 01:31:05]} {[%emt 00:00:08]} Nc6 {[%clk 01:31:20]}
{[%emt 00:00:05]} 3. Bc4 {[%clk 01:31:04]} {[%emt 00:00:31]} Bc5 {[%clk
01:31:43]} {[%emt 00:00:07]} 4. c3 {[%clk 01:30:54]} {[%emt 00:00:40]} Nf6
{[%clk 01:31:59]} {[%emt 00:00:13]} 5. d4 {[%clk 01:31:05]} {[%emt 00:00:19]}
exd4 {[%clk 01:32:01]} {[%emt 00:00:30]} 6. e5 {[%clk 01:31:13]} {[%emt
00:00:21]} d5 {[%clk 01:32:04]} {[%emt 00:00:27]} 7. Bb5 {[%clk 01:31:39]}
{[%emt 00:00:05]} Ne4 {[%clk 01:32:11]} {[%emt 00:00:22]} 8. cxd4 {[%clk
01:32:01]} {[%emt 00:00:07]} Bb6 {[%clk 01:32:29]} {[%emt 00:00:12]} 9. Nc3
{[%clk 01:32:17]} {[%emt 00:00:14]} O-O {[%clk 01:27:17]} {[%emt 00:05:43]} 10.
Be3 {[%clk 01:32:35]} {[%emt 00:00:12]} Bg4 {[%clk 01:26:59]} {[%emt 00:00:48]}
11. h3 {[%clk 01:32:38]} {[%emt 00:00:27]} Bh5 {[%clk 01:24:34]} {[%emt
00:02:55]} 12. Qc2 {[%clk 01:32:39]} {[%emt 00:00:28]} Bg6 {[%clk 01:17:12]}
{[%emt 00:07:53]} 13. Qb3 {[%clk 01:32:35]} {[%emt 00:00:34]} Ne7 {[%clk
01:08:34]} {[%emt 00:09:08]} 14. O-O {[%clk 01:32:36]} {[%emt 00:00:29]} c6
{[%clk 00:55:51]} {[%emt 00:13:14]} 15. Bd3 {[%clk 01:32:30]} {[%emt 00:00:35]}
Nxc3 {[%clk 00:50:31]} {[%emt 00:05:50]} 16. Qxc3 {[%clk 01:32:44]} {[%emt
00:00:16]} Bxd3 {[%clk 00:47:25]} {[%emt 00:03:36]} 17. Qxd3 {[%clk 01:33:03]}
{[%emt 00:00:11]} Qd7 {[%clk 00:47:48]} {[%emt 00:00:07]} 18. Nh4 {[%clk
01:29:33]} {[%emt 00:04:00]} f5 {[%clk 00:47:16]} {[%emt 00:01:01]} 19. f4
{[%clk 01:15:51]} {[%emt 00:14:12]} Rae8 {[%clk 00:47:21]} {[%emt 00:00:26]} 20.
Nf3 {[%clk 01:15:36]} {[%emt 00:00:45]} Bd8 {[%clk 00:38:03]} {[%emt 00:09:46]}
21. Kh2 {[%clk 01:15:12]} {[%emt 00:00:55]} Ng6 {[%clk 00:37:18]} {[%emt
00:01:15]} 22. Rg1 {[%clk 01:12:56]} {[%emt 00:02:46]} Qe6 {[%clk 00:27:23]}
{[%emt 00:10:24]} 23. Raf1 {[%clk 01:11:09]} {[%emt 00:02:19]} Rf7 {[%clk
00:26:19]} {[%emt 00:01:33]} 24. Nd2 {[%clk 01:08:23]} {[%emt 00:03:17]} Ref8
{[%clk 00:26:25]} {[%emt 00:00:23]} 25. Nb3 {[%clk 01:06:33]} {[%emt 00:02:21]}
b6 {[%clk 00:26:50]} {[%emt 00:00:06]} 26. Rc1 {[%clk 01:04:43]} {[%emt
00:02:19]} Kh8 {[%clk 00:25:13]} {[%emt 00:02:07]} 27. Rc3 {[%clk 01:04:14]}
{[%emt 00:00:59]} a5 {[%clk 00:21:47]} {[%emt 00:03:56]} 28. Rgc1 {[%clk
01:03:14]} {[%emt 00:01:29]} Ne7 {[%clk 00:18:58]} {[%emt 00:03:19]} 29. Nd2
{[%clk 01:02:38]} {[%emt 00:01:07]} Rg8 {[%clk 00:18:16]} {[%emt 00:01:12]} 30.
Nf3 {[%clk 01:02:34]} {[%emt 00:00:34]} h6 {[%clk 00:18:32]} {[%emt 00:00:14]}
31. Qd2 {[%clk 01:01:30]} {[%emt 00:01:34]} Bc7 {[%clk 00:14:09]} {[%emt
00:04:52]} 32. Bf2 {[%clk 01:00:07]} {[%emt 00:01:54]} Rc8 {[%clk 00:14:34]}
{[%emt 00:00:05]} 33. Bh4 {[%clk 00:59:05]} {[%emt 00:01:31]} Bd8 {[%clk
00:14:40]} {[%emt 00:00:25]} 34. Qc2 {[%clk 00:50:39]} {[%emt 00:08:56]} c5
{[%clk 00:06:52]} {[%emt 00:08:19]} 35. dxc5 {[%clk 00:48:45]} {[%emt
00:02:23]} bxc5 {[%clk 00:06:03]} {[%emt 00:01:20]} 36. Nd4 {[%clk 00:38:32]}
{[%emt 00:10:42]} Qb6 {[%clk 00:05:12]} {[%emt 00:01:20]} 37. Rxc5 {[%clk
00:38:45]} {[%emt 00:00:18]} Rxc5 {[%clk 00:04:09]} {[%emt 00:01:32]} 38. Qxc5
{[%clk 00:39:08]} {[%emt 00:00:07]} Qxc5 {[%clk 00:02:20]} {[%emt 00:02:20]} 39.
Rxc5 {[%clk 00:39:30]} {[%emt 00:00:07]} Bb6 {[%clk 00:02:42]} {[%emt
00:00:09]} 40. Bxe7 {[%clk 00:38:51]} {[%emt 00:01:08]} Rxe7 {[%clk 00:02:48]}
{[%emt 00:00:25]} 41. Rxd5 {[%clk 00:37:38]} {[%emt 00:01:42]} Bxd4 {[%clk
00:02:36]} {[%emt 00:00:42]} 42. Rxd4 {[%clk 00:38:01]} {[%emt 00:00:08]} Rb7
{[%clk 00:03:00]} {[%emt 00:00:06]} 43. Rd2 {[%clk 00:37:47]} {[%emt 00:00:44]}
Rb4 {[%clk 00:02:28]} {[%emt 00:01:01]} 44. Re2 {[%clk 00:35:01]} {[%emt
00:03:16]} Kg8 {[%clk 00:02:38]} {[%emt 00:00:21]} 45. Kg3 {[%clk 00:34:29]}
{[%emt 00:01:01]} Kf7 {[%clk 00:02:26]} {[%emt 00:00:43]} 46. Kf3 {[%clk
00:34:44]} {[%emt 00:00:14]} g5 {[%clk 00:02:07]} {[%emt 00:00:47]} 47. g3
{[%clk 00:34:55]} {[%emt 00:00:20]} a4 {[%clk 00:01:58]} {[%emt 00:00:41]} 48.
Rc2 {[%clk 00:26:51]} {[%emt 00:08:34]} Ke7 {[%clk 00:24:51]} {[%emt 00:07:37]}
49. Rc7+ {[%clk 00:55:04]} {[%emt 00:02:17]} Ke8 {[%clk 00:24:13]} {[%emt
00:01:08]} 50. Ra7 {[%clk 00:55:13]} {[%emt 00:00:20]} Kf8 {[%clk 00:23:55]}
{[%emt 00:00:47]} 51. Ra5 {[%clk 00:55:04]} {[%emt 00:00:42]} Ke7 {[%clk
00:23:43]} {[%emt 00:00:37]} 52. Ra6 {[%clk 00:54:38]} {[%emt 00:01:00]} gxf4
{[%clk 00:22:48]} {[%emt 00:01:25]} 53. gxf4 {[%clk 00:54:59]} {[%emt
00:00:08]} h5 {[%clk 00:23:00]} {[%emt 00:00:18]} 54. Kg3 {[%clk 00:54:06]}
{[%emt 00:01:23]} Rd4 {[%clk 00:21:50]} {[%emt 00:01:39]} 55. Rb6 {[%clk
00:51:40]} {[%emt 00:02:58]} a3 {[%clk 00:17:59]} {[%emt 00:04:21]} 56. bxa3
{[%clk 00:49:38]} {[%emt 00:02:31]} Rd3+ {[%clk 00:18:28]} {[%emt 00:00:02]} 57.
Kh4 {[%clk 00:49:32]} {[%emt 00:00:36]} Rxa3 {[%clk 00:18:48]} {[%emt
00:00:10]} 58. Kxh5 {[%clk 00:49:38]} {[%emt 00:00:23]} Rxh3+ {[%clk 00:18:43]}
{[%emt 00:00:35]} 59. Kg5 {[%clk 00:49:59]} {[%emt 00:00:09]} Ra3 {[%clk
00:19:02]} {[%emt 00:00:12]} 60. Kxf5 {[%clk 00:49:41]} {[%emt 00:00:48]} Rxa2
{[%clk 00:19:22]} {[%emt 00:00:10]} 61. Rb7+ {[%clk 00:49:24]} {[%emt
00:00:46]} Ke8 {[%clk 00:19:43]} {[%emt 00:00:09]} 62. Kf6 {[%clk 00:49:33]}
1-0

[Event "Schack-SM 2023: Veteran-SM 50+"]
[Site "Helsingborg Arena, Mellersta Stenbocksgatan 14, Helsingborg, Sweden"]
[Date "2023.07.07"]
[Round "7.3"]
[White "Nurmi, Tommy"]
[Black "Nilsson, Patrik 1968"]
[Result "1/2-1/2"]
[TimeControl "90 minutes for 40 moves + 30 minutes for the rest of games + 30 seconds per move from move one."]
[WhiteElo "2010"]
[BlackElo "1931"]

1. c4 {[%clk 01:30:50]} {[%emt 00:00:10]} g6 {[%clk 01:30:47]} {[%emt
00:00:14]} 2. Nc3 {[%clk 01:30:50]} {[%emt 00:00:29]} Bg7 {[%clk 01:31:03]}
{[%emt 00:00:13]} 3. g3 {[%clk 01:30:46]} {[%emt 00:00:35]} Nf6 {[%clk
01:31:21]} {[%emt 00:00:12]} 4. Bg2 {[%clk 01:30:52]} {[%emt 00:00:23]} O-O
{[%clk 01:31:32]} {[%emt 00:00:20]} 5. d3 {[%clk 01:29:21]} {[%emt 00:02:01]}
c6 {[%clk 01:28:51]} {[%emt 00:03:11]} 6. e4 {[%clk 01:28:30]} {[%emt
00:01:21]} d6 {[%clk 01:28:05]} {[%emt 00:01:15]} 7. Nge2 {[%clk 01:28:03]}
{[%emt 00:00:58]} e5 {[%clk 01:27:06]} {[%emt 00:01:28]} 8. h3 {[%clk
01:23:40]} {[%emt 00:04:54]} Be6 {[%clk 01:22:47]} {[%emt 00:04:48]} 9. g4
{[%clk 01:20:50]} {[%emt 00:03:20]} Nbd7 {[%clk 01:19:43]} {[%emt 00:03:35]} 10.
Be3 {[%clk 01:12:54]} {[%emt 00:08:25]} Nb6 {[%clk 01:12:52]} {[%emt 00:07:21]}
11. O-O {[%clk 00:58:44]} {[%emt 00:14:39]} h5 {[%clk 00:57:12]} {[%emt
00:16:11]} 12. g5 {[%clk 00:50:59]} {[%emt 00:08:16]} Ne8 {[%clk 00:55:51]}
{[%emt 00:01:51]} 13. Qd2 {[%clk 00:45:34]} {[%emt 00:05:54]} Nc7 {[%clk
00:54:12]} {[%emt 00:02:09]} 14. f4 {[%clk 00:40:19]} {[%emt 00:05:46]} exf4
{[%clk 00:51:41]} {[%emt 00:03:01]} 15. Nxf4 {[%clk 00:38:44]} {[%emt
00:02:04]} c5 {[%clk 00:42:56]} {[%emt 00:09:17]} 16. a4 {[%clk 00:26:23]}
{[%emt 00:12:51]} Nd7 {[%clk 00:38:10]} {[%emt 00:05:15]} 17. Nb5 {[%clk
00:23:22]} {[%emt 00:03:31]} Ne5 {[%clk 00:35:20]} {[%emt 00:03:19]} 18. Nxc7
{[%clk 00:15:52]} {[%emt 00:08:01]} Qxc7 {[%clk 00:35:33]} {[%emt 00:00:17]} 19.
Nd5 {[%clk 00:16:00]} {[%emt 00:00:22]} Bxd5 {[%clk 00:33:47]} {[%emt
00:02:16]} 20. exd5 {[%clk 00:15:21]} {[%emt 00:01:09]} Rae8 {[%clk 00:33:24]}
{[%emt 00:00:51]} 21. Kh1 {[%clk 00:14:07]} {[%emt 00:01:45]} Re7 {[%clk
00:31:46]} {[%emt 00:02:08]} 22. a5 {[%clk 00:13:38]} {[%emt 00:01:01]} Rfe8
{[%clk 00:31:34]} {[%emt 00:00:40]} 23. Rae1 {[%clk 00:13:06]} {[%emt
00:01:03]} Nd7 {[%clk 00:28:23]} {[%emt 00:03:41]} 24. Be4 {[%clk 00:12:48]}
{[%emt 00:00:47]} Ne5 {[%clk 00:24:53]} {[%emt 00:04:00]} 25. Bg2 {[%clk
00:12:03]} {[%emt 00:01:17]} Nd7 {[%emt 00:00:35]} 1/2-1/2

[Event "Schack-SM 2023: Mastarklassen-elit"]
[Site "Helsingborg Arena, Mellersta Stenbocksgatan 14, Helsingborg, Sweden"]
[Date "2023.07.07"]
[Round "7.5"]
[White "Lokander, Martin"]
[Black "Walinder, Lars"]
[Result "1-0"]
[TimeControl "90 minutes for 40 moves + 30 minutes for the rest of games + 30 seconds per move from move one."]
[WhiteTitle "IM"]
[BlackTitle "FM"]
[WhiteElo "2444"]
[BlackElo "2310"]

1. e4 {[%clk 01:30:51]} {[%emt 00:00:09]} e6 {[%clk 01:30:45]} {[%emt
00:00:16]} 2. d4 {[%clk 01:31:15]} {[%emt 00:00:05]} d5 {[%clk 01:31:09]}
{[%emt 00:00:06]} 3. e5 {[%clk 01:31:30]} {[%emt 00:00:15]} c5 {[%clk
01:31:28]} {[%emt 00:00:11]} 4. c3 {[%clk 01:31:55]} {[%emt 00:00:05]} Qb6
{[%clk 01:31:37]} {[%emt 00:00:21]} 5. Nf3 {[%clk 01:32:17]} {[%emt 00:00:08]}
Nc6 {[%clk 01:31:57]} {[%emt 00:00:10]} 6. Bd3 {[%clk 01:32:35]} {[%emt
00:00:12]} Nh6 {[%clk 01:31:34]} {[%emt 00:00:53]} 7. dxc5 {[%clk 01:32:36]}
{[%emt 00:00:29]} Bxc5 {[%clk 01:30:51]} {[%emt 00:01:13]} 8. Qe2 {[%clk
01:32:50]} {[%emt 00:00:16]} Ng4 {[%clk 01:06:34]} {[%emt 00:24:47]} 9. O-O
{[%clk 01:32:51]} {[%emt 00:00:28]} f6 {[%clk 01:03:45]} {[%emt 00:03:20]} 10.
exf6 {[%clk 01:28:14]} {[%emt 00:05:08]} Nxf6 {[%clk 01:03:09]} {[%emt
00:01:05]} 11. b4 {[%clk 01:24:01]} {[%emt 00:04:44]} Bd6 {[%clk 00:54:32]}
{[%emt 00:09:06]} 12. b5 {[%clk 01:23:14]} {[%emt 00:01:18]} Ne7 {[%clk
00:48:06]} {[%emt 00:06:54]} 13. c4 {[%clk 01:23:41]} {[%emt 00:00:04]} O-O
{[%clk 00:46:11]} {[%emt 00:02:25]} 14. Bb2 {[%clk 01:24:04]} {[%emt 00:00:08]}
dxc4 {[%clk 00:37:46]} {[%emt 00:08:54]} 15. Bxc4 {[%clk 01:24:26]} {[%emt
00:00:08]} Ned5 {[%clk 00:38:06]} {[%emt 00:00:10]} 16. g3 {[%clk 01:23:29]}
{[%emt 00:01:27]} Bd7 {[%clk 00:33:08]} {[%emt 00:05:28]} 17. Nbd2 {[%clk
01:20:20]} {[%emt 00:03:39]} Rae8 {[%clk 00:32:06]} {[%emt 00:01:32]} 18. a4
{[%clk 01:19:52]} {[%emt 00:00:59]} Re7 {[%clk 00:26:49]} {[%emt 00:05:46]} 19.
Bb3 {[%clk 01:18:56]} {[%emt 00:01:26]} Qd8 {[%clk 00:25:16]} {[%emt 00:02:02]}
20. Nc4 {[%clk 01:18:26]} {[%emt 00:01:01]} Bc5 {[%clk 00:24:51]} {[%emt
00:00:55]} 21. Nce5 {[%clk 01:16:50]} {[%emt 00:02:06]} Be8 {[%clk 00:24:27]}
{[%emt 00:00:54]} 22. Rac1 {[%clk 01:16:26]} {[%emt 00:00:55]} Bd6 {[%clk
00:22:39]} {[%emt 00:02:18]} 23. Nd4 {[%clk 01:14:43]} {[%emt 00:02:13]} Bh5
{[%clk 00:21:11]} {[%emt 00:01:57]} 24. f3 {[%clk 01:14:46]} {[%emt 00:00:28]}
Qb8 {[%clk 00:19:10]} {[%emt 00:02:30]} 25. Nc4 {[%clk 01:14:33]} {[%emt
00:00:44]} Bc5 {[%clk 00:16:50]} {[%emt 00:02:50]} 26. Ne5 {[%clk 01:14:13]}
{[%emt 00:00:50]} Bd6 {[%clk 00:17:05]} {[%emt 00:00:14]} 27. Rfe1 {[%clk
01:13:16]} {[%emt 00:01:27]} Kh8 {[%clk 00:13:13]} {[%emt 00:04:22]} 28. Kg2
{[%clk 01:07:45]} {[%emt 00:06:01]} Be8 {[%clk 00:12:23]} {[%emt 00:01:20]} 29.
f4 {[%clk 01:06:41]} {[%emt 00:01:34]} Bh5 {[%clk 00:11:41]} {[%emt 00:01:12]}
30. Qd3 {[%clk 01:05:31]} {[%emt 00:01:40]} Bxe5 {[%clk 00:05:16]} {[%emt
00:06:56]} 31. Rxe5 {[%clk 01:05:36]} {[%emt 00:00:24]} Bg6 {[%clk 00:05:17]}
{[%emt 00:00:29]} 32. Qe2 {[%clk 01:05:35]} {[%emt 00:00:32]} Qd6 {[%clk
00:03:38]} {[%emt 00:02:07]} 33. Re1 {[%clk 01:02:28]} {[%emt 00:03:38]} Rfe8
{[%clk 00:01:52]} {[%emt 00:02:16]} 34. Qf3 {[%clk 01:00:47]} {[%emt 00:02:11]}
Nd7 {[%clk 00:01:34]} {[%emt 00:00:49]} 35. Rxe6 {[%clk 00:57:53]} {[%emt
00:03:23]} Rxe6 {[%clk 00:01:48]} {[%emt 00:00:15]} 36. Rxe6 {[%clk 00:58:20]}
{[%emt 00:00:04]} Rxe6 {[%clk 00:01:19]} {[%emt 00:00:59]} 37. Nxe6 {[%clk
00:58:48]} {[%emt 00:00:02]} N7b6 {[%clk 00:01:13]} {[%emt 00:00:37]} 38. f5
{[%clk 00:57:55]} {[%emt 00:01:23]} Bxf5 {[%clk 00:01:28]} {[%emt 00:00:14]} 39.
Nxg7 {[%clk 00:58:22]} {[%emt 00:00:03]} 1-0

[Event "Schack-SM 2023: Mastarklassen"]
[Site "Helsingborg Arena, Mellersta Stenbocksgatan 14, Helsingborg, Sweden"]
[Date "2023.07.07"]
[Round "7.3"]
[White "Joensson, Jacob"]
[Black "Frisk, Ellinor"]
[Result "1-0"]
[TimeControl "90 minutes for 40 moves + 30 minutes for the rest of games + 30 seconds per move from move one."]
[BlackTitle "WIM"]
[WhiteElo "2039"]
[BlackElo "2178"]

1. d4 {[%clk 01:30:58]} {[%emt 00:00:02]} Nf6 {[%clk 01:30:51]} {[%emt
00:00:10]} 2. c4 {[%clk 01:31:24]} {[%emt 00:00:04]} c5 {[%clk 01:31:01]}
{[%emt 00:00:19]} 3. d5 {[%clk 01:31:50]} {[%emt 00:00:04]} b5 {[%clk
01:31:03]} {[%emt 00:00:29]} 4. Qc2 {[%clk 01:32:15]} {[%emt 00:00:05]} bxc4
{[%clk 01:31:08]} {[%emt 00:00:24]} 5. e4 {[%clk 01:32:40]} {[%emt 00:00:05]}
e6 {[%clk 01:31:24]} {[%emt 00:00:14]} 6. Bxc4 {[%clk 01:30:03]} {[%emt
00:03:07]} exd5 {[%clk 01:31:46]} {[%emt 00:00:09]} 7. exd5 {[%clk 01:30:27]}
{[%emt 00:00:05]} d6 {[%clk 01:32:08]} {[%emt 00:00:07]} 8. Ne2 {[%clk
01:27:11]} {[%emt 00:03:46]} Be7 {[%clk 01:32:14]} {[%emt 00:00:24]} 9. O-O
{[%clk 01:26:36]} {[%emt 00:01:05]} O-O {[%clk 01:32:39]} {[%emt 00:00:06]} 10.
b3 {[%clk 01:26:52]} {[%emt 00:00:14]} Nbd7 {[%clk 01:31:23]} {[%emt 00:01:47]}
11. Bb2 {[%clk 01:25:47]} {[%emt 00:01:33]} Ng4 {[%clk 01:12:08]} {[%emt
00:19:45]} 12. Nbc3 {[%clk 01:17:46]} {[%emt 00:08:31]} Nde5 {[%clk 01:10:15]}
{[%emt 00:02:24]} 13. Rae1 {[%clk 01:01:18]} {[%emt 00:16:57]} Rb8 {[%clk
01:01:04]} {[%emt 00:09:42]} 14. Ba1 {[%clk 00:57:28]} {[%emt 00:04:20]} Nxc4
{[%clk 00:53:31]} {[%emt 00:08:04]} 15. bxc4 {[%clk 00:53:31]} {[%emt
00:04:26]} Ne5 {[%clk 00:52:09]} {[%emt 00:01:52]} 16. Ne4 {[%clk 00:46:02]}
{[%emt 00:07:58]} Nd7 {[%clk 00:38:06]} {[%emt 00:14:33]} 17. Nf4 {[%clk
00:35:47]} {[%emt 00:10:45]} h6 {[%clk 00:27:39]} {[%emt 00:10:57]} 18. Re3
{[%clk 00:25:45]} {[%emt 00:10:33]} Bf6 {[%clk 00:21:09]} {[%emt 00:07:00]} 19.
Nxf6+ {[%clk 00:25:23]} {[%emt 00:00:52]} Nxf6 {[%clk 00:21:37]} {[%emt
00:00:02]} 20. Qc3 {[%clk 00:24:11]} {[%emt 00:01:42]} Re8 {[%clk 00:18:04]}
{[%emt 00:04:03]} 21. Rxe8+ {[%clk 00:15:37]} {[%emt 00:09:04]} Qxe8 {[%clk
00:18:26]} {[%emt 00:00:08]} 22. Re1 {[%clk 00:15:41]} {[%emt 00:00:26]} Qd8
{[%clk 00:15:26]} {[%emt 00:03:30]} 23. h3 {[%clk 00:14:57]} {[%emt 00:01:13]}
Bf5 {[%clk 00:15:29]} {[%emt 00:00:28]} 24. Re3 {[%clk 00:14:25]} {[%emt
00:01:02]} Kh7 {[%clk 00:10:58]} {[%emt 00:05:01]} 25. Kh2 {[%clk 00:12:20]}
{[%emt 00:02:34]} Qb6 {[%clk 00:09:25]} {[%emt 00:02:04]} 26. Rg3 {[%clk
00:12:13]} {[%emt 00:00:36]} Bg6 {[%clk 00:09:35]} {[%emt 00:00:20]} 27. Qf3
{[%clk 00:09:53]} {[%emt 00:02:50]} Rf8 {[%clk 00:03:03]} {[%emt 00:07:03]} 28.
Bxf6 {[%clk 00:09:34]} {[%emt 00:00:48]} gxf6 {[%clk 00:03:29]} {[%emt
00:00:05]} 29. Nh5 {[%clk 00:09:40]} {[%emt 00:00:24]} Bxh5 {[%clk 00:02:58]}
{[%emt 00:01:00]} 30. Qxh5 {[%clk 00:10:03]} {[%emt 00:00:07]} Qb1 {[%clk
00:03:13]} {[%emt 00:00:16]} 31. Qg4 {[%clk 00:10:23]} {[%emt 00:00:08]} Qg6
{[%clk 00:03:21]} {[%emt 00:00:23]} 32. Qd7 {[%clk 00:10:35]} {[%emt 00:00:17]}
Qe4 {[%clk 00:02:03]} {[%emt 00:01:49]} 33. Qxd6 {[%clk 00:10:46]} {[%emt
00:00:19]} Rg8 {[%clk 00:02:21]} {[%emt 00:00:13]} 34. Rxg8 {[%clk 00:10:59]}
{[%emt 00:00:17]} Kxg8 {[%clk 00:02:49]} {[%emt 00:00:02]} 35. Qxc5 {[%clk
00:11:22]} {[%emt 00:00:07]} Qe5+ {[%clk 00:02:32]} {[%emt 00:00:47]} 36. g3
{[%clk 00:11:40]} {[%emt 00:00:12]} f5 {[%clk 00:02:19]} {[%emt 00:00:43]} 37.
Qe3 {[%clk 00:11:48]} {[%emt 00:00:22]} Qd6 {[%clk 00:02:31]} {[%emt 00:00:18]}
38. Qd4 {[%clk 00:12:05]} {[%emt 00:00:12]} Qa6 {[%clk 00:01:40]} {[%emt
00:01:22]} 39. d6 {[%clk 00:12:21]} {[%emt 00:00:13]} 1-0

[Event "Schack-SM 2023: Veteran-SM 65+"]
[Site "Helsingborg Arena, Mellersta Stenbocksgatan 14, Helsingborg, Sweden"]
[Date "2023.07.07"]
[Round "7.4"]
[White "Franzen Hogberg, Thomas"]
[Black "Malmdin, Nils-Ake"]
[Result "0-1"]
[TimeControl "90 minutes for 40 moves + 30 minutes for the rest of games + 30 seconds per move from move one."]
[BlackTitle "FM"]
[WhiteElo "1998"]
[BlackElo "2091"]

1. b3 {[%clk 01:30:46]} {[%emt 00:00:14]} e5 {[%clk 01:27:21]} {[%emt
00:03:38]} 2. Bb2 {[%clk 01:30:19]} {[%emt 00:00:57]} Nc6 {[%clk 01:27:24]}
{[%emt 00:00:26]} 3. c4 {[%clk 01:29:24]} {[%emt 00:01:26]} Nf6 {[%clk
01:26:50]} {[%emt 00:01:03]} 4. e3 {[%clk 01:28:16]} {[%emt 00:01:39]} d6
{[%clk 01:21:07]} {[%emt 00:06:13]} 5. Ne2 {[%clk 01:25:11]} {[%emt 00:03:35]}
g6 {[%clk 01:19:55]} {[%emt 00:01:41]} 6. d4 {[%clk 01:23:05]} {[%emt
00:02:37]} Bg7 {[%clk 01:16:53]} {[%emt 00:03:32]} 7. dxe5 {[%clk 01:19:21]}
{[%emt 00:04:13]} Ng4 {[%clk 01:11:34]} {[%emt 00:05:49]} 8. h3 {[%clk
01:11:52]} {[%emt 00:08:00]} Ngxe5 {[%clk 01:11:39]} {[%emt 00:00:24]} 9. Nd4
{[%clk 01:11:57]} {[%emt 00:00:25]} O-O {[%clk 01:08:55]} {[%emt 00:03:15]} 10.
Be2 {[%clk 01:05:04]} {[%emt 00:07:24]} Qg5 {[%clk 00:56:57]} {[%emt 00:12:26]}
11. Kf1 {[%clk 01:03:17]} {[%emt 00:02:18]} Qh4 {[%clk 00:50:12]} {[%emt
00:07:14]} 12. Nd2 {[%clk 01:02:31]} {[%emt 00:01:17]} Nb4 {[%clk 00:43:03]}
{[%emt 00:07:39]} 13. N2f3 {[%clk 00:54:28]} {[%emt 00:08:34]} Qe7 {[%clk
00:40:15]} {[%emt 00:03:17]} 14. a3 {[%clk 00:52:28]} {[%emt 00:02:31]} Na6
{[%clk 00:40:36]} {[%emt 00:00:09]} 15. Qc2 {[%clk 00:51:24]} {[%emt 00:01:33]}
f5 {[%clk 00:37:44]} {[%emt 00:03:21]} 16. g3 {[%clk 00:49:21]} {[%emt
00:02:34]} Nc5 {[%clk 00:33:56]} {[%emt 00:04:18]} 17. Nb5 {[%clk 00:44:08]}
{[%emt 00:05:43]} c6 {[%clk 00:31:44]} {[%emt 00:02:42]} 18. Nc3 {[%clk
00:42:31]} {[%emt 00:02:08]} Be6 {[%clk 00:27:13]} {[%emt 00:04:59]} 19. Nd4
{[%clk 00:39:23]} {[%emt 00:03:39]} Rae8 {[%clk 00:24:37]} {[%emt 00:03:05]} 20.
Nxe6 {[%clk 00:34:27]} {[%emt 00:05:27]} Qxe6 {[%clk 00:24:43]} {[%emt
00:00:22]} 21. Kg2 {[%clk 00:34:42]} {[%emt 00:00:17]} g5 {[%clk 00:21:50]}
{[%emt 00:03:23]} 22. Rae1 {[%clk 00:24:55]} {[%emt 00:10:17]} Qf7 {[%clk
00:14:59]} {[%emt 00:07:21]} 23. f4 {[%clk 00:19:17]} {[%emt 00:06:08]} Ned7
{[%clk 00:14:55]} {[%emt 00:00:33]} 24. Bf3 {[%clk 00:19:18]} {[%emt 00:00:31]}
Qg6 {[%clk 00:15:00]} {[%emt 00:00:24]} 25. Kh2 {[%clk 00:18:35]} {[%emt
00:01:14]} Nf6 {[%clk 00:14:48]} {[%emt 00:00:42]} 26. Rhg1 {[%clk 00:17:42]}
{[%emt 00:01:23]} g4 {[%clk 00:13:06]} {[%emt 00:02:12]} 27. Bd1 {[%clk
00:11:45]} {[%emt 00:06:27]} gxh3 {[%clk 00:12:31]} {[%emt 00:01:04]} 28. b4
{[%clk 00:11:35]} {[%emt 00:00:41]} Nce4 {[%clk 00:10:55]} {[%emt 00:02:05]} 29.
Nxe4 {[%clk 00:11:35]} {[%emt 00:00:32]} Rxe4 {[%clk 00:11:02]} {[%emt
00:00:21]} 30. Kxh3 {[%clk 00:11:36]} {[%emt 00:00:29]} Rfe8 {[%clk 00:10:33]}
{[%emt 00:01:00]} 31. Qd2 {[%clk 00:09:30]} {[%emt 00:02:37]} Ng4 {[%clk
00:10:02]} {[%emt 00:01:01]} 32. Bxg4 {[%clk 00:09:40]} {[%emt 00:00:20]} Qxg4+
{[%clk 00:10:10]} {[%emt 00:00:20]} 33. Kg2 {[%clk 00:10:03]} {[%emt 00:00:08]}
Bxb2 {[%clk 00:10:09]} {[%emt 00:00:31]} 34. Qxb2 {[%clk 00:09:14]} {[%emt
00:01:19]} Rxe3 {[%clk 00:10:20]} {[%emt 00:00:18]} 0-1